[Event "*** Titled Tuesday Blitz"]
[Site "Chess.com"]
[Date "2019.10.01"]
[Round "3"]
[White "TrimitziosP7"]
[Black "Grischuk"]
[Result "0-1"]
[WhiteElo "2765"]
[BlackElo "3057"]
[TimeControl "180+2"]
[EndTime "13:41:02 PDT"]
[Termination "Grischuk won by resignation"]

1. Nf3 {[%clk 0:03:01.9]} 1... Nf6 {[%clk 0:02:54.1]} 2. b3 {[%clk 0:03:01.7]}
2... g6 {[%clk 0:02:46.4]} 3. Bb2 {[%clk 0:03:02.5]} 3... Bg7 {[%clk 0:02:48.1]}
4. g3 {[%clk 0:03:03.3]} 4... O-O {[%clk 0:02:46.3]} 5. Bg2 {[%clk 0:03:04]}
5... d6 {[%clk 0:02:48]} 6. d4 {[%clk 0:03:04.4]} 6... Nbd7 {[%clk 0:02:49.6]}
7. O-O {[%clk 0:03:05]} 7... Re8 {[%clk 0:02:51.2]} 8. c4 {[%clk 0:03:05.4]}
8... c6 {[%clk 0:02:52.3]} 9. Nc3 {[%clk 0:03:03.9]} 9... e5 {[%clk 0:02:53.3]}
10. dxe5 {[%clk 0:03:04.6]} 10... dxe5 {[%clk 0:02:54.2]} 11. Nd2 {[%clk
0:03:01.9]} 11... Nc5 {[%clk 0:02:50.2]} 12. b4 {[%clk 0:02:31.6]} 12... Qb6
{[%clk 0:02:49.7]} 13. Ba3 {[%clk 0:02:01.2]} 13... Ne6 {[%clk 0:02:49.7]} 14.
c5 {[%clk 0:02:01.7]} 14... Qc7 {[%clk 0:02:44]} 15. Nc4 {[%clk 0:02:02]} 15...
Rd8 {[%clk 0:02:43.2]} 16. Qc1 {[%clk 0:01:57.7]} 16... b6 {[%clk 0:02:10.1]}
17. Nd6 {[%clk 0:01:47.3]} 17... bxc5 {[%clk 0:01:45.4]} 18. bxc5 {[%clk
0:01:40.4]} 18... Ba6 {[%clk 0:01:46.6]} 19. Re1 {[%clk 0:01:27]} 19... Nd7
{[%clk 0:01:25.4]} 20. Na4 {[%clk 0:01:08.7]} 20... Nd4 {[%clk 0:01:13.6]} 21.
Nc3 {[%clk 0:00:39.8]} 21... Rab8 {[%clk 0:00:49.9]} 22. e3 {[%clk 0:00:39.2]}
22... Ne6 {[%clk 0:00:51.3]} 23. Na4 {[%clk 0:00:34.7]} 23... Bb5 {[%clk
0:00:50.4]} 24. Nxb5 {[%clk 0:00:28.5]} 24... cxb5 {[%clk 0:00:52.3]} 25. Nc3
{[%clk 0:00:29.4]} 25... Ndxc5 {[%clk 0:00:29.5]} 26. Nd5 {[%clk 0:00:27.5]}
26... Qd6 {[%clk 0:00:30.9]} 27. Rd1 {[%clk 0:00:22.5]} 27... Kh8 {[%clk
0:00:31.6]} 28. Rb1 {[%clk 0:00:18.7]} 28... a5 {[%clk 0:00:28]} 29. Qc2 {[%clk
0:00:17.9]} 29... Rdc8 {[%clk 0:00:15.2]} 30. Rbc1 {[%clk 0:00:12.2]} 30... Qf8
{[%clk 0:00:12.8]} 31. Qe2 {[%clk 0:00:09.2]} 31... b4 {[%clk 0:00:13.7]} 32.
Bb2 {[%clk 0:00:10.4]} 32... e4 {[%clk 0:00:10.1]} 33. Bxg7+ {[%clk 0:00:06.3]}
33... Qxg7 {[%clk 0:00:12]} 34. h4 {[%clk 0:00:07.2]} 34... f5 {[%clk
0:00:12.6]} 35. h5 {[%clk 0:00:07.7]} 35... Nd3 {[%clk 0:00:13.5]} 36. Rxc8+
{[%clk 0:00:08]} 36... Rxc8 {[%clk 0:00:15.4]} 37. hxg6 {[%clk 0:00:07.6]} 37...
hxg6 {[%clk 0:00:16]} 38. Bf1 {[%clk 0:00:04.8]} 38... Qb2 {[%clk 0:00:11.2]}
39. Ne7 {[%clk 0:00:02.6]} 39... Qxe2 {[%clk 0:00:05.5]} 40. Bxe2 {[%clk
0:00:04.5]} 40... Rc2 {[%clk 0:00:06.7]} 41. Bxd3 {[%clk 0:00:05.2]} 41... exd3
{[%clk 0:00:08.6]} 42. Rxd3 {[%clk 0:00:06.8]} 42... Kg7 {[%clk 0:00:09.5]} 43.
Rd6 {[%clk 0:00:06.2]} 43... Nc5 {[%clk 0:00:07.2]} 44. Rc6 {[%clk 0:00:05.3]}
44... a4 {[%clk 0:00:06.5]} 45. Nxg6 {[%clk 0:00:05.3]} 45... b3 {[%clk
0:00:07.1]} 46. axb3 {[%clk 0:00:07.2]} 46... axb3 {[%clk 0:00:09]} 47. Nh4
{[%clk 0:00:05.2]} 47... b2 {[%clk 0:00:08.6]} 48. Nxf5+ {[%clk 0:00:06]} 48...
Kh7 {[%clk 0:00:08.4]} 49. Rb6 {[%clk 0:00:04]} 49... Rc1+ {[%clk 0:00:08.9]}
50. Kg2 {[%clk 0:00:05]} 50... b1=Q {[%clk 0:00:10.8]} 51. Rxb1 {[%clk
0:00:05.9]} 51... Rxb1 {[%clk 0:00:12.7]} 52. g4 {[%clk 0:00:07.2]} 52... Rb2
{[%clk 0:00:13.4]} 53. Kg3 {[%clk 0:00:07.9]} 53... Ne4+ {[%clk 0:00:14.2]} 54.
Kf3 {[%clk 0:00:08.2]} 54... Nxf2 {[%clk 0:00:14.6]} 55. e4 {[%clk 0:00:09.4]}
55... Nd3 {[%clk 0:00:15.2]} 56. Ke3 {[%clk 0:00:09.7]} 56... Ne5 {[%clk
0:00:09]} 57. Kf4 {[%clk 0:00:10.4]} 57... Nf7 {[%clk 0:00:09.9]} 58. Ne3 {[%clk
0:00:08.6]} 58... Rf2+ {[%clk 0:00:09.3]} 59. Kg3 {[%clk 0:00:09.3]} 59... Re2
{[%clk 0:00:09.5]} 60. Kf3 {[%clk 0:00:10]} 60... Re1 {[%clk 0:00:10.7]} 61. Kf2
{[%clk 0:00:09.7]} 61... Ra1 {[%clk 0:00:11.5]} 62. Kf3 {[%clk 0:00:10.9]} 62...
Kg6 {[%clk 0:00:09.7]} 63. Kf4 {[%clk 0:00:10]} 63... Ng5 {[%clk 0:00:10.4]} 64.
e5 {[%clk 0:00:05.7]} 64... Ra4+ {[%clk 0:00:09.9]} 65. Kg3 {[%clk 0:00:06.9]}
65... Re4 {[%clk 0:00:10.6]} 66. Nd5 {[%clk 0:00:05.7]} 66... Rxe5 {[%clk
0:00:10.6]} 67. Nf4+ {[%clk 0:00:07.1]} 67... Kh6 {[%clk 0:00:10.4]} 68. Ng2
{[%clk 0:00:05.5]} 68... Ra5 {[%clk 0:00:10.8]} 69. Kf4 {[%clk 0:00:06.3]} 69...
Nh3+ {[%clk 0:00:09.3]} 70. Kg3 {[%clk 0:00:07]} 70... Ra3+ {[%clk 0:00:10.5]}
71. Kh4 {[%clk 0:00:04.9]} 71... Ng5 {[%clk 0:00:10.9]} 72. Ne3 {[%clk
0:00:02.8]} 72... Nf3+ {[%clk 0:00:12.4]} 73. Kg3 {[%clk 0:00:02.4]} 73... Rxe3
{[%clk 0:00:14.3]} 74. Kf4 {[%clk 0:00:02.9]} 74... Ra3 {[%clk 0:00:15]} 75. Ke4
{[%clk 0:00:03.3]} 75... Nh2 {[%clk 0:00:14.9]} 76. g5+ {[%clk 0:00:02.3]} 76...
Kxg5 {[%clk 0:00:15.5]} 77. Kd4 {[%clk 0:00:04.2]} 77... Ng4 {[%clk 0:00:15.8]}
78. Kc4 {[%clk 0:00:06.1]} 78... Re3 {[%clk 0:00:16.9]} 79. Kb4 {[%clk 0:00:08]}
79... Kf4 {[%clk 0:00:18.7]} 80. Kc4 {[%clk 0:00:09.6]} 80... Re8 {[%clk
0:00:19.2]} 81. Kd4 {[%clk 0:00:11.5]} 81... Rd8+ {[%clk 0:00:20.3]} 82. Kc4
{[%clk 0:00:13.4]} 82... Ke4 {[%clk 0:00:21.6]} 83. Kc5 {[%clk 0:00:15.3]} 83...
Rd1 {[%clk 0:00:22.2]} 84. Kc6 {[%clk 0:00:17.2]} 84... Ke5 {[%clk 0:00:23]} 85.
Kb5 {[%clk 0:00:19.1]} 85... Rc1 {[%clk 0:00:23.6]} 86. Kb4 {[%clk 0:00:21]}
86... Kd5 {[%clk 0:00:24.6]} 87. Ka3 {[%clk 0:00:22.9]} 87... Rb1 {[%clk
0:00:25.5]} 88. Ka2 {[%clk 0:00:23.6]} 88... Rb8 {[%clk 0:00:27.4]} 89. Ka3
{[%clk 0:00:25.5]} 89... Kc4 {[%clk 0:00:28.9]} 90. Ka4 {[%clk 0:00:27.4]} 0-1

[Event "*** Titled Tuesday Blitz"]
[Site "Chess.com"]
[Date "2019.10.01"]
[Round "4"]
[White "Slovak_fighter2000"]
[Black "JussupowFan"]
[Result "1-0"]
[WhiteElo "2454"]
[BlackElo "2205"]
[TimeControl "180+2"]
[EndTime "13:50:44 PDT"]
[Termination "Slovak_fighter2000 won by resignation"]

1. e4 {[%clk 0:03:01.8]} 1... c5 {[%clk 0:03:00.9]} 2. d4 {[%clk 0:03:01.7]}
2... cxd4 {[%clk 0:03:01.6]} 3. c3 {[%clk 0:03:02.7]} 3... dxc3 {[%clk
0:03:03.5]} 4. Nxc3 {[%clk 0:03:04.1]} 4... Nc6 {[%clk 0:03:05]} 5. Nf3 {[%clk
0:03:05.1]} 5... e6 {[%clk 0:03:06]} 6. Bc4 {[%clk 0:03:06.4]} 6... a6 {[%clk
0:03:05.3]} 7. O-O {[%clk 0:03:07.3]} 7... b5 {[%clk 0:03:06.5]} 8. Bb3 {[%clk
0:03:07.5]} 8... Nge7 {[%clk 0:03:07.9]} 9. Qe2 {[%clk 0:03:07.8]} 9... Bb7
{[%clk 0:03:08.7]} 10. Bf4 {[%clk 0:03:06.9]} 10... Ng6 {[%clk 0:03:07.3]} 11.
Bg3 {[%clk 0:03:07.7]} 11... Na5 {[%clk 0:02:50]} 12. Nd5 {[%clk 0:03:04.5]}
12... Rc8 {[%clk 0:02:45.3]} 13. Rac1 {[%clk 0:03:04.7]} 13... d6 {[%clk
0:02:13.7]} 14. Rxc8 {[%clk 0:02:59.6]} 14... Qxc8 {[%clk 0:02:06.2]} 15. Nf4
{[%clk 0:02:56.9]} 15... Nxb3 {[%clk 0:02:03.3]} 16. axb3 {[%clk 0:02:58.6]}
16... Be7 {[%clk 0:02:02.3]} 17. Rd1 {[%clk 0:02:55.3]} 17... O-O {[%clk
0:01:29.6]} 18. Nxg6 {[%clk 0:02:55.8]} 18... hxg6 {[%clk 0:01:31.5]} 19. Bxd6
{[%clk 0:02:56.6]} 19... Bxd6 {[%clk 0:01:33.4]} 20. Rxd6 {[%clk 0:02:57.6]}
20... Qd8 {[%clk 0:01:21.9]} 21. Rxd8 {[%clk 0:02:58.1]} 1-0

[Event "*** Titled Tuesday Blitz"]
[Site "Chess.com"]
[Date "2019.10.01"]
[Round "4"]
[White "colegiodemadrid"]
[Black "Svet99"]
[Result "1-0"]
[WhiteElo "2346"]
[BlackElo "2164"]
[TimeControl "180+2"]
[EndTime "13:51:18 PDT"]
[Termination "colegiodemadrid won by resignation"]

1. e4 {[%clk 0:02:48.3]} 1... c6 {[%clk 0:03:00.5]} 2. d4 {[%clk 0:02:48.1]}
2... d5 {[%clk 0:03:01.2]} 3. e5 {[%clk 0:02:49.7]} 3... Bf5 {[%clk 0:03:01.8]}
4. h4 {[%clk 0:02:51]} 4... h5 {[%clk 0:03:01.9]} 5. Bd3 {[%clk 0:02:52.4]} 5...
Bxd3 {[%clk 0:03:02.1]} 6. Qxd3 {[%clk 0:02:54.3]} 6... e6 {[%clk 0:03:02.9]} 7.
Bg5 {[%clk 0:02:55.2]} 7... Be7 {[%clk 0:03:03.5]} 8. Nf3 {[%clk 0:02:56.6]}
8... Nh6 {[%clk 0:03:03.7]} 9. Nbd2 {[%clk 0:02:57.2]} 9... Nf5 {[%clk 0:03:04]}
10. Nf1 {[%clk 0:02:57.9]} 10... c5 {[%clk 0:03:03.1]} 11. Ne3 {[%clk
0:02:54.6]} 11... Nxd4 {[%clk 0:02:59.5]} 12. Nxd4 {[%clk 0:02:54.9]} 12... cxd4
{[%clk 0:03:00.3]} 13. Qxd4 {[%clk 0:02:53.5]} 13... Nc6 {[%clk 0:03:01.1]} 14.
Qf4 {[%clk 0:02:53.1]} 14... Bxg5 {[%clk 0:02:52.2]} 15. hxg5 {[%clk 0:02:52.9]}
15... Qa5+ {[%clk 0:02:52.6]} 16. c3 {[%clk 0:02:52]} 16... d4 {[%clk
0:02:53.1]} 17. Nc4 {[%clk 0:02:53.2]} 17... Qc7 {[%clk 0:02:32.7]} 18. Nd6+
{[%clk 0:02:49.8]} 18... Kf8 {[%clk 0:02:31.3]} 19. cxd4 {[%clk 0:02:48.2]}
19... Nb4 {[%clk 0:02:29.5]} 20. Kf1 {[%clk 0:02:43]} 20... Nd5 {[%clk
0:02:25.3]} 21. Qf3 {[%clk 0:02:39.6]} 21... g6 {[%clk 0:02:26]} 22. Kg1 {[%clk
0:02:38]} 22... Kg7 {[%clk 0:02:26.4]} 23. Kh2 {[%clk 0:02:39.4]} 23... h4
{[%clk 0:02:19.6]} 24. Rac1 {[%clk 0:02:40.6]} 24... Qe7 {[%clk 0:02:20.2]} 25.
Qf6+ {[%clk 0:02:29.3]} 25... Qxf6 {[%clk 0:02:19.6]} 26. gxf6+ {[%clk
0:02:28.2]} 26... Kf8 {[%clk 0:02:09.1]} 27. Nxb7 {[%clk 0:02:28.1]} 27... Rb8
{[%clk 0:02:10]} 28. Nd6 {[%clk 0:02:28.4]} 28... Rh5 {[%clk 0:02:06.8]} 29. b3
{[%clk 0:02:22.5]} 1-0

[Event "*** Titled Tuesday Blitz"]
[Site "Chess.com"]
[Date "2019.10.01"]
[Round "4"]
[White "platy3"]
[Black "Nightlord1"]
[Result "1/2-1/2"]
[WhiteElo "2849"]
[BlackElo "2260"]
[TimeControl "180+2"]
[EndTime "13:52:05 PDT"]
[Termination "Game drawn by agreement"]

1. e4 {[%clk 0:03:01.5]} 1... e5 {[%clk 0:02:57.7]} 2. Nf3 {[%clk 0:02:57.1]}
2... d5 {[%clk 0:02:59.2]} 3. exd5 {[%clk 0:02:56.7]} 3... e4 {[%clk 0:02:59.8]}
4. Qe2 {[%clk 0:02:57.6]} 4... Nf6 {[%clk 0:03:00.1]} 5. d3 {[%clk 0:02:47.7]}
5... Qxd5 {[%clk 0:03:00.9]} 6. dxe4 {[%clk 0:02:44.8]} 6... Qxe4 {[%clk
0:03:01.9]} 7. Nc3 {[%clk 0:02:40.7]} 7... Bb4 {[%clk 0:03:02]} 8. Bd2 {[%clk
0:02:36.1]} 8... Qxe2+ {[%clk 0:02:58.1]} 9. Bxe2 {[%clk 0:02:35.3]} 9... O-O
{[%clk 0:03:00]} 10. O-O-O {[%clk 0:02:33.1]} 10... a6 {[%clk 0:02:59.8]} 11. h3
{[%clk 0:02:19.1]} 11... Nc6 {[%clk 0:03:00.9]} 12. a3 {[%clk 0:02:18.7]} 12...
Bc5 {[%clk 0:03:01.5]} 13. Rhf1 {[%clk 0:02:19.3]} 13... Be6 {[%clk 0:03:01.6]}
14. Bg5 {[%clk 0:02:18.1]} 14... Rad8 {[%clk 0:02:57.4]} 15. Bxf6 {[%clk
0:02:14.8]} 15... gxf6 {[%clk 0:02:58.3]} 16. Ne4 {[%clk 0:02:14.8]} 16... Be7
{[%clk 0:02:56.8]} 17. Ng3 {[%clk 0:02:11]} 17... Ne5 {[%clk 0:02:56.3]} 18. Nd4
{[%clk 0:02:09.6]} 18... Bc5 {[%clk 0:02:53.2]} 19. Nxe6 {[%clk 0:02:06.9]}
19... fxe6 {[%clk 0:02:53.9]} 20. Ne4 {[%clk 0:01:54.5]} 20... Be7 {[%clk
0:02:53.1]} 21. f4 {[%clk 0:01:53.4]} 21... Rxd1+ {[%clk 0:02:38.9]} 22. Rxd1
{[%clk 0:01:53.8]} 22... f5 {[%clk 0:02:39.6]} 23. fxe5 {[%clk 0:01:33.6]} 23...
fxe4 {[%clk 0:02:40.8]} 24. Bc4 {[%clk 0:01:25.4]} 24... Bg5+ {[%clk 0:02:36.9]}
25. Kb1 {[%clk 0:01:26.3]} 25... e3 {[%clk 0:02:16.9]} 26. Bxe6+ {[%clk
0:01:25.5]} 26... Kg7 {[%clk 0:02:16.4]} 27. Bg4 {[%clk 0:01:25.6]} 27... Rf2
{[%clk 0:02:13.9]} 28. Ka2 {[%clk 0:01:15.9]} 28... Rxg2 {[%clk 0:02:15]} 29. e6
{[%clk 0:01:12.2]} 1/2-1/2

[Event "*** Titled Tuesday Blitz"]
[Site "Chess.com"]
[Date "2019.10.01"]
[Round "4"]
[White "DanielNaroditsky"]
[Black "IMTominho"]
[Result "1-0"]
[WhiteElo "3021"]
[BlackElo "2772"]
[TimeControl "180+2"]
[EndTime "13:52:20 PDT"]
[Termination "DanielNaroditsky won by resignation"]

1. e4 {[%clk 0:03:01.9]} 1... e5 {[%clk 0:03:00.5]} 2. Nf3 {[%clk 0:03:01.1]}
2... Nf6 {[%clk 0:03:01.3]} 3. d4 {[%clk 0:03:00]} 3... Nxe4 {[%clk 0:02:58.6]}
4. Bd3 {[%clk 0:03:01.5]} 4... d5 {[%clk 0:02:59.3]} 5. dxe5 {[%clk 0:03:02.7]}
5... Bf5 {[%clk 0:02:52.7]} 6. O-O {[%clk 0:02:59.5]} 6... Nc6 {[%clk
0:02:53.1]} 7. Nc3 {[%clk 0:02:41.8]} 7... Nxc3 {[%clk 0:02:47.8]} 8. bxc3
{[%clk 0:02:43]} 8... Bg4 {[%clk 0:02:47.2]} 9. Rb1 {[%clk 0:02:42.8]} 9... Rb8
{[%clk 0:02:43.5]} 10. h3 {[%clk 0:02:42.6]} 10... Bh5 {[%clk 0:02:42.2]} 11. e6
{[%clk 0:02:28.6]} 11... fxe6 {[%clk 0:02:38.7]} 12. Re1 {[%clk 0:02:30.1]}
12... Qf6 {[%clk 0:02:27.4]} 13. g4 {[%clk 0:02:26.3]} 13... Bf7 {[%clk
0:02:27.3]} 14. Bg5 {[%clk 0:01:42.6]} 14... Qxc3 {[%clk 0:02:26.3]} 15. Bb5
{[%clk 0:01:42.1]} 15... Bd6 {[%clk 0:02:11.5]} 16. Rb3 {[%clk 0:01:09.4]} 16...
Qc5 {[%clk 0:02:02.9]} 17. Be3 {[%clk 0:01:10]} 17... d4 {[%clk 0:01:28.2]} 18.
Bxd4 {[%clk 0:01:10.5]} 18... Qd5 {[%clk 0:01:28.9]} 19. c4 {[%clk 0:01:11.8]}
1-0

[Event "*** Titled Tuesday Blitz"]
[Site "Chess.com"]
[Date "2019.10.01"]
[Round "4"]
[White "vugarrasulov"]
[Black "Hikaru"]
[Result "1-0"]
[WhiteElo "2865"]
[BlackElo "3159"]
[TimeControl "180+2"]
[EndTime "13:52:24 PDT"]
[Termination "vugarrasulov won by resignation"]

1. d4 {[%clk 0:03:01.9]} 1... Nf6 {[%clk 0:03:00.1]} 2. c4 {[%clk 0:03:03.4]}
2... g6 {[%clk 0:02:55.5]} 3. Nc3 {[%clk 0:03:03.8]} 3... Bg7 {[%clk 0:02:56.4]}
4. e4 {[%clk 0:03:04.9]} 4... d6 {[%clk 0:02:57.8]} 5. Be2 {[%clk 0:03:05.3]}
5... O-O {[%clk 0:02:59]} 6. Bg5 {[%clk 0:03:06.9]} 6... Na6 {[%clk 0:02:58]} 7.
Qd2 {[%clk 0:03:05.6]} 7... Qe8 {[%clk 0:02:58]} 8. f3 {[%clk 0:02:56.2]} 8...
e5 {[%clk 0:02:59]} 9. d5 {[%clk 0:02:57]} 9... Nc5 {[%clk 0:03:00.5]} 10. Bh6
{[%clk 0:02:36.9]} 10... a5 {[%clk 0:03:00.9]} 11. Bxg7 {[%clk 0:02:37.1]} 11...
Kxg7 {[%clk 0:03:02.8]} 12. Bd3 {[%clk 0:02:35.5]} 12... Nh5 {[%clk 0:02:58]}
13. Nge2 {[%clk 0:02:36.5]} 13... Nf4 {[%clk 0:02:54.6]} 14. Nxf4 {[%clk
0:02:35.6]} 14... exf4 {[%clk 0:02:56.5]} 15. Bc2 {[%clk 0:02:33.4]} 15... Qe5
{[%clk 0:02:55.9]} 16. O-O-O {[%clk 0:02:34.3]} 16... f5 {[%clk 0:02:31.9]} 17.
exf5 {[%clk 0:02:26.3]} 17... Bxf5 {[%clk 0:02:32.6]} 18. Rhe1 {[%clk
0:02:24.9]} 18... Qf6 {[%clk 0:02:34.1]} 19. Qxf4 {[%clk 0:02:19.2]} 19... a4
{[%clk 0:02:35.4]} 20. Qd4 {[%clk 0:02:15.8]} 20... a3 {[%clk 0:02:26.9]} 21.
Qxf6+ {[%clk 0:02:00.7]} 21... Kxf6 {[%clk 0:02:28.8]} 22. b3 {[%clk 0:01:58.5]}
22... Na6 {[%clk 0:02:28.1]} 23. Bxf5 {[%clk 0:01:57.1]} 23... gxf5 {[%clk
0:02:25.9]} 24. Re6+ {[%clk 0:01:52.4]} 24... Kg7 {[%clk 0:02:27.1]} 25. Nb5
{[%clk 0:01:49.1]} 25... Nb4 {[%clk 0:02:24.3]} 26. Kb1 {[%clk 0:01:49.5]} 26...
Rf7 {[%clk 0:02:25.4]} 27. Rde1 {[%clk 0:01:44.6]} 27... Rd8 {[%clk 0:02:25.6]}
28. Re7 {[%clk 0:01:41.9]} 28... c6 {[%clk 0:02:21.5]} 29. dxc6 {[%clk
0:01:35.8]} 29... bxc6 {[%clk 0:02:21]} 30. Nd4 {[%clk 0:01:31.5]} 30... Rxe7
{[%clk 0:02:19.2]} 31. Rxe7+ {[%clk 0:01:33.4]} 31... Kf6 {[%clk 0:02:20.8]} 32.
Re6+ {[%clk 0:01:26.7]} 32... Kf7 {[%clk 0:02:21.8]} 33. Re2 {[%clk 0:01:26]}
33... c5 {[%clk 0:02:19.1]} 34. Nc2 {[%clk 0:01:24.7]} 34... d5 {[%clk
0:02:13.9]} 35. Nxb4 {[%clk 0:01:21.9]} 35... d4 {[%clk 0:02:15.4]} 1-0

[Event "*** Titled Tuesday Blitz"]
[Site "Chess.com"]
[Date "2019.10.01"]
[Round "4"]
[White "akretchetov"]
[Black "heyiampotato"]
[Result "1-0"]
[WhiteElo "2378"]
[BlackElo "2518"]
[TimeControl "180+2"]
[EndTime "13:52:42 PDT"]
[Termination "akretchetov won on time"]

1. d4 {[%clk 0:03:01.9]} 1... Nf6 {[%clk 0:03:00]} 2. Bf4 {[%clk 0:03:01.9]}
2... g6 {[%clk 0:02:56.1]} 3. Nc3 {[%clk 0:03:02.2]} 3... d5 {[%clk 0:02:55.7]}
4. e3 {[%clk 0:03:03]} 4... Bg7 {[%clk 0:02:55.1]} 5. h4 {[%clk 0:03:03.8]} 5...
O-O {[%clk 0:02:52.2]} 6. h5 {[%clk 0:03:04.7]} 6... c5 {[%clk 0:02:53.6]} 7.
hxg6 {[%clk 0:03:03.3]} 7... hxg6 {[%clk 0:02:53.5]} 8. Qf3 {[%clk 0:02:59.9]}
8... Nc6 {[%clk 0:02:48.5]} 9. Nge2 {[%clk 0:02:59.6]} 9... Qb6 {[%clk
0:02:37.5]} 10. O-O-O {[%clk 0:02:59.5]} 10... cxd4 {[%clk 0:02:22.1]} 11. exd4
{[%clk 0:02:46.8]} 11... Bf5 {[%clk 0:02:12]} 12. Qg3 {[%clk 0:02:44.7]} 12...
Rfc8 {[%clk 0:01:55]} 13. Qh4 {[%clk 0:02:43]} 13... Nb4 {[%clk 0:01:48.9]} 14.
Bh6 {[%clk 0:02:41.6]} 14... Nxa2+ {[%clk 0:01:34]} 15. Kd2 {[%clk 0:02:41.6]}
15... Nh5 {[%clk 0:00:18.4]} 16. Bxg7 {[%clk 0:02:37.9]} 16... Kxg7 {[%clk
0:00:20.3]} 17. g4 {[%clk 0:02:32.7]} 17... Qxb2 {[%clk 0:00:16.9]} 18. gxf5
{[%clk 0:02:20.4]} 18... Nxc3 {[%clk 0:00:13.8]} 19. Nf4 {[%clk 0:02:14.5]}
19... Ne4+ {[%clk 0:00:12.4]} 20. Ke3 {[%clk 0:02:14.3]} 20... Rc3+ {[%clk
0:00:04.4]} 21. Bd3 {[%clk 0:02:15.4]} 1-0

[Event "*** Titled Tuesday Blitz"]
[Site "Chess.com"]
[Date "2019.10.01"]
[Round "4"]
[White "ChessWarrior7197"]
[Black "biostatistician"]
[Result "1-0"]
[WhiteElo "2912"]
[BlackElo "2586"]
[TimeControl "180+2"]
[EndTime "13:52:44 PDT"]
[Termination "ChessWarrior7197 won by resignation"]

1. d4 {[%clk 0:03:01.9]} 1... Nf6 {[%clk 0:02:59.8]} 2. c4 {[%clk 0:03:02.3]}
2... g6 {[%clk 0:02:58.4]} 3. Nc3 {[%clk 0:03:02.3]} 3... Bg7 {[%clk 0:03:00.3]}
4. e4 {[%clk 0:03:02.9]} 4... d6 {[%clk 0:03:01.6]} 5. h3 {[%clk 0:03:03.8]}
5... O-O {[%clk 0:03:03.5]} 6. Bg5 {[%clk 0:03:04.2]} 6... c5 {[%clk 0:03:04.3]}
7. d5 {[%clk 0:03:04.5]} 7... e6 {[%clk 0:03:05.6]} 8. Bd3 {[%clk 0:02:59.2]}
8... exd5 {[%clk 0:03:06.6]} 9. exd5 {[%clk 0:03:00.4]} 9... Re8+ {[%clk
0:03:00.7]} 10. Nge2 {[%clk 0:03:01.5]} 10... Nbd7 {[%clk 0:02:59.5]} 11. O-O
{[%clk 0:03:01.1]} 11... Ne5 {[%clk 0:03:00.8]} 12. f4 {[%clk 0:03:01.1]} 12...
Nxd3 {[%clk 0:03:02.2]} 13. Qxd3 {[%clk 0:03:02]} 13... Bf5 {[%clk 0:03:02.3]}
14. Qd2 {[%clk 0:03:03.2]} 14... h6 {[%clk 0:03:02]} 15. Bh4 {[%clk 0:03:03.9]}
15... Qb6 {[%clk 0:02:15.3]} 16. Ng3 {[%clk 0:03:04]} 16... Ne4 {[%clk
0:02:12.9]} 17. Ngxe4 {[%clk 0:03:03.8]} 17... Bxe4 {[%clk 0:02:14.8]} 18. Rae1
{[%clk 0:03:04.3]} 18... Bf5 {[%clk 0:02:12.5]} 19. g4 {[%clk 0:03:04.8]} 19...
Bd7 {[%clk 0:01:44.3]} 20. Be7 {[%clk 0:03:05.9]} 20... Qb4 {[%clk 0:01:30.9]}
21. f5 {[%clk 0:03:06.7]} 21... Qxc4 {[%clk 0:01:19.6]} 22. f6 {[%clk 0:03:07]}
22... Bh8 {[%clk 0:01:20.6]} 23. Re4 {[%clk 0:03:05.4]} 23... Qa6 {[%clk
0:01:18]} 24. Qxh6 {[%clk 0:03:06.5]} 24... Qd3 {[%clk 0:01:12.8]} 25. Kg2
{[%clk 0:02:57.5]} 25... b5 {[%clk 0:00:25.9]} 26. g5 {[%clk 0:02:57.9]} 26...
Qd2+ {[%clk 0:00:11.9]} 27. Rf2 {[%clk 0:02:57.8]} 27... Bxh3+ {[%clk
0:00:13.1]} 28. Qxh3 {[%clk 0:02:58.3]} 28... Qxg5+ {[%clk 0:00:14.7]} 29. Rg4
{[%clk 0:02:56.3]} 29... Qc1 {[%clk 0:00:13.1]} 30. Rh4 {[%clk 0:02:56.9]} 1-0

[Event "*** Titled Tuesday Blitz"]
[Site "Chess.com"]
[Date "2019.10.01"]
[Round "4"]
[White "mishanick"]
[Black "adriangschnitzer"]
[Result "0-1"]
[WhiteElo "2977"]
[BlackElo "2542"]
[TimeControl "180+2"]
[EndTime "13:52:48 PDT"]
[Termination "adriangschnitzer won by resignation"]

1. d4 {[%clk 0:02:58.2]} 1... Nf6 {[%clk 0:03:00]} 2. c4 {[%clk 0:02:59.7]} 2...
c5 {[%clk 0:03:00]} 3. d5 {[%clk 0:03:00.7]} 3... b5 {[%clk 0:03:00.8]} 4. cxb5
{[%clk 0:03:02.6]} 4... a6 {[%clk 0:03:02]} 5. bxa6 {[%clk 0:03:04.5]} 5... g6
{[%clk 0:03:02.7]} 6. Nc3 {[%clk 0:03:06]} 6... Bg7 {[%clk 0:03:03.8]} 7. e4
{[%clk 0:03:06.5]} 7... O-O {[%clk 0:03:04.8]} 8. Be2 {[%clk 0:03:07.6]} 8...
Qa5 {[%clk 0:03:02.5]} 9. Bd2 {[%clk 0:03:08.8]} 9... Bxa6 {[%clk 0:02:58.2]}
10. e5 {[%clk 0:03:10.2]} 10... Ne8 {[%clk 0:02:57.7]} 11. Nf3 {[%clk
0:03:09.8]} 11... d6 {[%clk 0:02:55.8]} 12. e6 {[%clk 0:03:10.9]} 12... Bxe2
{[%clk 0:02:54.9]} 13. Qxe2 {[%clk 0:03:12.8]} 13... Qa6 {[%clk 0:02:54]} 14.
Ng5 {[%clk 0:02:56.2]} 14... Qxe2+ {[%clk 0:02:42.2]} 15. Kxe2 {[%clk
0:02:58.1]} 15... f5 {[%clk 0:02:42.6]} 16. h4 {[%clk 0:02:58.1]} 16... Nf6
{[%clk 0:02:20.9]} 17. h5 {[%clk 0:02:50.7]} 17... Nxh5 {[%clk 0:02:17.8]} 18.
Rh4 {[%clk 0:02:46.3]} 18... Na6 {[%clk 0:02:08]} 19. Rah1 {[%clk 0:02:29.2]}
19... Nc7 {[%clk 0:02:05.2]} 20. Rxh5 {[%clk 0:02:25.9]} 20... gxh5 {[%clk
0:02:05]} 21. Rxh5 {[%clk 0:02:27.8]} 21... Bxc3 {[%clk 0:01:32.8]} 22. Bxc3
{[%clk 0:02:29.7]} 22... Nxd5 {[%clk 0:01:33.9]} 23. Rxh7 {[%clk 0:02:30.5]}
23... Nxc3+ {[%clk 0:01:26.9]} 24. bxc3 {[%clk 0:02:32.4]} 24... Rxa2+ {[%clk
0:01:27]} 25. Ke3 {[%clk 0:02:33.4]} 25... f4+ {[%clk 0:01:21.3]} 26. Ke4 {[%clk
0:02:19.1]} 26... Ra4+ {[%clk 0:01:19.9]} 27. Kf3 {[%clk 0:02:15.1]} 27... Rf5
{[%clk 0:01:19.4]} 28. Rh5 {[%clk 0:02:11.6]} 28... Kg7 {[%clk 0:01:15.3]} 29.
g4 {[%clk 0:01:47.4]} 29... fxg3+ {[%clk 0:01:10.5]} 30. Kxg3 {[%clk 0:01:47.8]}
30... Kg6 {[%clk 0:01:08.8]} 0-1